fUSD/lending_fUSD_20240822
["ID","MTS","AMOUNT","RATE_DAILY","PERIOD"]
[335541135,1724317850047,-406.61765058,0.00010789,2]
[335541136,1724317850058,-500.0,0.00010789,2]
[335541137,1724317850068,-523.34902222,0.00010789,2]
[335541138,1724317850077,-588.2,0.00010789,2]
[335541139,1724317850086,-503.79,0.00010789,2]
[335541140,1724317850096,-500.0,0.00010789,2]
[335541141,1724317850106,-500.0,0.00010789,2]
[335541142,1724317850117,-500.0,0.00010789,2]
[335541143,1724317850126,-500.0,0.00010789,2]
[335541144,1724317850136,-525.74033858,0.00010789,2]
[335541145,1724317850145,-500.0,0.00010789,2]
[335541146,1724317850155,-500.0,0.00010789,2]
[335541147,1724317850168,-500.0,0.00010789,2]
[335541148,1724317850177,-500.0,0.00010789,2]
[335541149,1724317850187,-500.0,0.00010789,2]
[335541150,1724317850196,-500.0,0.00010789,2]
[335541151,1724317850206,-500.0,0.00010789,2]
[335541152,1724317850215,-408.92704034,0.00010789,2]
[335541153,1724317850225,-529.46435056,0.00010789,2]
[335541154,1724317850235,-500.0,0.00010789,2]
[335541155,1724317850244,-500.0,0.00010789,2]
[335541156,1724317850253,-500.0,0.00010789,2]
[335541157,1724317850263,-245.89045464,0.00010789,2]
[335541158,1724317850277,-500.0,0.00010789,2]
[335541159,1724317850286,-500.0,0.00010789,2]
[335541160,1724317850297,-500.0,0.00010789,2]
[335541161,1724317850307,-500.0,0.00010789,2]
[335541162,1724317850318,-500.0,0.00010789,2]
[335541163,1724317850327,-600.06,0.00010789,2]
[335541164,1724317850336,-500.0,0.00010789,2]
[335541165,1724317850347,-536.96,0.00010789,2]
[335541166,1724317850356,-571.32,0.00010789,2]
[335541167,1724317850366,-541.97,0.00010789,2]
[335541168,1724317850375,-500.0,0.00010789,2]
[335541169,1724317850384,-500.0,0.00010789,2]
[335541170,1724317850394,-500.0,0.00010789,2]
[335541171,1724317850404,-500.0,0.00010789,2]
[335541172,1724317850414,-500.0,0.00010789,2]
[335541173,1724317850424,-500.0,0.00010789,2]
[335541174,1724317850433,-500.0,0.00010789,2]
[335541175,1724317850443,-500.0,0.00010789,2]
[335541176,1724317850453,-500.0,0.00010789,2]
[335541177,1724317850462,-500.0,0.00010789,2]
[335541178,1724317850472,-500.0,0.00010789,2]
[335541179,1724317850481,-500.0,0.00010789,2]
[335541180,1724317850491,-500.0,0.00010789,2]
[335541181,1724317850501,-500.0,0.00010789,2]
[335541182,1724317850510,-500.0,0.00010789,2]
[335541183,1724317850520,-500.0,0.00010789,2]
[335541184,1724317850530,-500.0,0.00010789,2]
[335541185,1724317850539,-500.0,0.00010789,2]
[335541186,1724317850548,-624.78,0.00010789,2]
[335541187,1724317850557,-500.0,0.00010789,2]
[335541188,1724317850566,-500.0,0.00010789,2]
[335541189,1724317850576,-515.12022163,0.00010789,2]
[335541190,1724317850585,-500.0,0.00010789,2]
[335541191,1724317850595,-500.0,0.00010789,2]
[335541192,1724317850605,-500.0,0.00010789,2]
[335541193,1724317850614,-500.0,0.00010789,2]
[335541194,1724317850623,-515.65106949,0.00010789,2]
[335541195,1724317850633,-514.16751971,0.00010789,2]
[335541196,1724317850642,-500.0,0.00010789,2]
[335541197,1724317850651,-500.0,0.00010789,2]
[335541198,1724317850661,-500.0,0.00010789,2]
[335541199,1724317850670,-500.0,0.00010789,2]
[335541200,1724317850680,-500.0,0.00010789,2]
[335541201,1724317850689,-500.0,0.00010789,2]
[335541202,1724317850698,-500.0,0.00010789,2]
[335541203,1724317850708,-500.0,0.00010789,2]
[335541204,1724317850718,-500.0,0.00010789,2]
[335541205,1724317850727,-519.62375696,0.00010789,2]
[335541206,1724317850736,-500.0,0.00010789,2]
[335541207,1724317850746,-500.0,0.00010789,2]
[335541208,1724317850755,-500.0,0.00010789,2]
[335541209,1724317850764,-513.24016542,0.00010789,2]
[335541210,1724317850774,-500.0,0.00010789,2]
[335541211,1724317850784,-500.0,0.00010789,2]
[335541212,1724317850793,-500.0,0.00010789,2]
[335541213,1724317850803,-500.0,0.00010789,2]
[335541214,1724317850812,-500.0,0.00010789,2]
[335541215,1724317850822,-500.0,0.00010789,2]
[335541216,1724317850831,-526.91320118,0.00010789,2]
[335541217,1724317850840,-500.0,0.00010789,2]
[335541218,1724317850850,-500.0,0.00010789,2]
[335541219,1724317850859,-575.22193224,0.00010789,2]
[335541220,1724317850868,-500.0,0.00010789,2]
[335541221,1724317850878,-500.0,0.00010789,2]
[335541222,1724317850887,-527.36251409,0.00010789,2]
[335541223,1724317850897,-500.0,0.00010789,2]
[335541224,1724317850907,-500.0,0.00010789,2]
[335541225,1724317850916,-500.0,0.00010789,2]
[335541226,1724317850925,-500.0,0.00010789,2]
[335541227,1724317850935,-500.0,0.00010789,2]
[335541228,1724317850944,-500.0,0.00010789,2]
[335541229,1724317850953,-500.0,0.00010789,2]
[335541230,1724317850963,-500.0,0.00010789,2]
[335541231,1724317850972,-500.0,0.00010789,2]
[335541232,1724317850981,-500.0,0.00010789,2]
[335541233,1724317850990,-500.0,0.00010789,2]
[335541234,1724317851000,-571.77187838,0.00010789,2]
[335541235,1724317851009,-500.0,0.00010789,2]
[335541236,1724317851018,-500.0,0.00010789,2]
[335541237,1724317851027,-500.0,0.00010789,2]
[335541238,1724317851036,-500.0,0.00010789,2]
[335541239,1724317851045,-500.0,0.00010789,2]
[335541240,1724317851055,-500.0,0.00010789,2]
[335541241,1724317851064,-500.0,0.00010789,2]
[335541242,1724317851073,-500.0,0.00010789,2]
[335541243,1724317851083,-500.0,0.00010789,2]
[335541244,1724317851092,-500.0,0.00010789,2]
[335541245,1724317851101,-500.0,0.00010789,2]
[335541246,1724317851111,-500.0,0.00010789,2]
[335541247,1724317851120,-500.0,0.00010789,2]
[335541248,1724317851129,-500.0,0.00010789,2]
[335541249,1724317851139,-476.01516007,0.00010789,2]
[335541250,1724317851149,-500.0,0.00010789,2]
[335541251,1724317851158,-500.0,0.00010789,2]
[335541252,1724317851169,-500.0,0.00010789,2]
[335541253,1724317851186,-500.0,0.00010789,2]
[335541254,1724317851195,-353.97010204,0.00010789,2]
[335541255,1724317851205,-500.0,0.00010789,2]
[335541256,1724317851214,-500.0,0.00010789,2]
[335541257,1724317851224,-500.0,0.00010789,2]
[335541258,1724317851233,-500.0,0.00010789,2]
[335541259,1724317851243,-542.00000001,0.00010789,2]
[335541260,1724317851252,-523.18206462,0.00010789,2]
[335541261,1724317851261,-166.56,0.00010789,2]
[335541262,1724317851271,-516.66092369,0.00010789,2]
[335541263,1724317851284,-500.0,0.00010789,2]
[335541264,1724317851294,-500.0,0.00010789,2]
[335541265,1724317851303,-500.0,0.00010789,2]
[335541266,1724317851313,-500.0,0.00010789,2]
[335541267,1724317851323,-500.0,0.00010789,2]
[335541268,1724317851333,-500.0,0.00010789,2]
[335541269,1724317851343,-500.0,0.00010789,2]
[335541270,1724317851353,-500.0,0.00010789,2]
[335541271,1724317851363,-500.0,0.00010789,2]
[335541272,1724317851372,-500.0,0.00010789,2]
[335541273,1724317851382,-500.0,0.00010789,2]
[335541274,1724317851391,-500.0,0.00010789,2]
[335541275,1724317851518,-500.0,0.00010789,2]
[335541276,1724317851527,-500.0,0.00010789,2]
[335541277,1724317851537,-500.0,0.00010789,2]
[335541278,1724317851547,-500.0,0.00010789,2]
[335541279,1724317851556,-500.0,0.00010789,2]
[335541280,1724317851567,-500.0,0.00010789,2]
[335541281,1724317851576,-500.0,0.00010789,2]
[335541282,1724317851585,-500.0,0.00010789,2]
[335541283,1724317851595,-500.0,0.00010789,2]
[335541284,1724317851603,-500.0,0.00010789,2]
[335541285,1724317851613,-500.0,0.00010789,2]
[335541286,1724317851622,-500.0,0.00010789,2]
[335541287,1724317851631,-500.0,0.00010789,2]
[335541288,1724317851640,-526.65351434,0.00010789,2]
[335541289,1724317851649,-230.08702513,0.00010789,2]
[335541290,1724317851659,-500.0,0.00010789,2]
[335541291,1724317851673,-500.0,0.00010789,2]
[335541292,1724317851682,-500.0,0.00010789,2]
[335541293,1724317851691,-500.0,0.00010789,2]
[335541294,1724317851700,-500.0,0.00010789,2]
[335541295,1724317851710,-500.0,0.00010789,2]
[335541296,1724317851719,-500.0,0.00010789,2]
[335541297,1724317851729,-500.0,0.00010789,2]
[335541298,1724317851738,-500.0,0.00010789,2]
[335541299,1724317851747,-500.0,0.00010789,2]
[335541300,1724317851756,-500.0,0.00010789,2]
[335541301,1724317851765,-519.86604416,0.00010789,2]
[335541302,1724317851774,-500.0,0.00010789,2]
[335541303,1724317851783,-500.0,0.00010789,2]
[335541304,1724317851793,-489.13115202,0.00010789,2]
[335541305,1724317851802,-500.0,0.00010789,2]
[335541306,1724317851811,-500.0,0.00010789,2]
[335541307,1724317851821,-500.0,0.00010789,2]
[335541308,1724317851831,-500.0,0.00010789,2]
[335541309,1724317851840,-500.0,0.00010789,2]
[335541310,1724317851849,-500.0,0.00010789,2]
[335541311,1724317851858,-521.39481341,0.00010789,2]
[335541312,1724317851868,-528.48,0.00010789,2]
[335541313,1724317851877,-500.0,0.00010789,2]
[335541314,1724317851887,-500.0,0.00010789,2]
[335541315,1724317851896,-500.0,0.00010789,2]
[335541316,1724317851905,-500.0,0.00010789,2]
[335541317,1724317851915,-376.206125,0.00010789,2]
[335541318,1724317851924,-620.48699428,0.00010789,2]
[335541319,1724317851933,-156.56602708,0.00010789,2]
[335541320,1724317851942,-524.91914278,0.00010789,2]
[335541321,1724317851952,-265.50844244,0.00010789,2]
[335541322,1724317851961,-511.15342813,0.00010789,2]
[335541323,1724317851970,-500.0,0.00010789,2]
[335541324,1724317851979,-166.04807629,0.00010789,2]
[335541325,1724317851989,-500.0,0.00010789,2]
[335541326,1724317851998,-500.0,0.00010789,2]
[335541327,1724317852007,-402.35973774,0.00010789,2]
[335541328,1724317852016,-500.0,0.00010789,2]
[335541329,1724317852026,-500.0,0.00010789,2]
[335541330,1724317852035,-492.64710957,0.00010789,2]
[335541331,1724317852044,-500.0,0.00010789,2]
[335541332,1724317852054,-500.0,0.00010789,2]
[335541333,1724317852063,-500.0,0.00010789,2]
[335541334,1724317852072,-544.80044582,0.00010789,2]
[335541335,1724317852081,-637.34172068,0.00010789,2]
[335541336,1724317852091,-500.0,0.00010789,2]
[335541337,1724317852101,-500.0,0.00010789,2]
[335541338,1724317852110,-500.0,0.00010789,2]
[335541339,1724317852120,-218.51445045,0.00010789,2]
[335541340,1724317852129,-526.39391045,0.00010789,2]
[335541341,1724317852138,-500.0,0.00010789,2]
[335541342,1724317852147,-500.0,0.00010789,2]
[335541343,1724317852157,-523.26675417,0.00010789,2]
[335541344,1724317852168,-519.23744214,0.00010789,2]
[335541345,1724317852178,-527.05461504,0.00010789,2]
[335541346,1724317852187,-508.08303277,0.00010789,2]
[335541347,1724317852197,-509.52559914,0.00010789,2]
[335541348,1724317852206,-508.24529537,0.00010789,2]
[335541349,1724317852215,-543.1817161,0.00010789,2]
[335541350,1724317852224,-500.0,0.00010789,2]
[335541351,1724317852234,-529.13809162,0.00010789,2]
[335541352,1724317852243,-519.29369208,0.00010789,2]
[335541353,1724317852252,-500.0,0.00010789,2]
[335541354,1724317852261,-506.92618102,0.00010789,2]
[335541355,1724317852271,-377.06291409,0.00010789,2]
[335541356,1724317852284,-500.0,0.00010789,2]
[335541357,1724317852293,-500.0,0.00010789,2]
[335541358,1724317852303,-525.5024735,0.00010789,2]
[335541359,1724317852311,-500.0,0.00010789,2]
[335541360,1724317852321,-500.0,0.00010789,2]
[335541361,1724317852330,-500.0,0.00010789,2]
[335541362,1724317852340,-510.95275783,0.00010789,2]
[335541363,1724317852349,-500.0,0.00010789,2]
[335541364,1724317852360,-500.0,0.00010789,2]
[335541365,1724317852370,-500.0,0.00010789,2]
[335541366,1724317852379,-500.0,0.00010789,2]
[335541367,1724317852388,-503.33660163,0.00010789,2]
[335541368,1724317852397,-503.84602316,0.00010789,2]
[335541369,1724317852406,-506.7326421,0.00010789,2]
[335541370,1724317852415,-518.53512941,0.00010789,2]
[335541371,1724317852425,-500.0,0.00010789,2]
[335541372,1724317852434,-506.15276382,0.00010789,2]
[335541373,1724317852443,-503.74858197,0.00010789,2]
[335541374,1724317852452,-523.36576374,0.00010789,2]
[335541375,1724317852461,-513.08322099,0.00010789,2]
[335541376,1724317852470,-500.0,0.00010789,2]
[335541377,1724317852479,-500.0,0.00010789,2]
[335541378,1724317852488,-648.36041415,0.00010789,2]
[335541379,1724317852498,-500.0,0.00010789,2]
[335541380,1724317852507,-150.89599327,0.00010789,2]
[335541381,1724317852516,-500.0,0.00010789,2]
[335541382,1724317852526,-500.0,0.00010789,2]
[335541383,1724317852535,-500.0,0.00010789,2]
[335541384,1724317852544,-500.0,0.00010789,2]
[335541385,1724317852554,-500.0,0.00010789,2]
[335541386,1724317852563,-500.0,0.00010789,2]
[335541387,1724317852572,-328.98252299,0.00010789,2]
[335541388,1724317852581,-500.0,0.00010789,2]
[335541389,1724317852591,-164.37260381,0.00010789,2]
[335541390,1724317852601,-500.0,0.00010789,2]
[335541391,1724317852611,-500.0,0.00010789,2]
[335541392,1724317852620,-500.0,0.00010789,2]
[335541393,1724317852629,-500.0,0.00010789,2]
[335541394,1724317852638,-512.27363512,0.00010789,2]
[335541395,1724317852647,-500.0,0.00010789,2]
[335541396,1724317852656,-505.94255661,0.00010789,2]
[335541397,1724317852665,-348.61254733,0.00010789,2]
[335541398,1724317852676,-500.0,0.00010789,2]
[335541399,1724317852685,-500.0,0.00010789,2]
[335541400,1724317852694,-500.0,0.00010789,2]
[335541401,1724317852703,-500.0,0.00010789,2]
[335541402,1724317852712,-500.0,0.00010789,2]
[335541403,1724317852722,-512.23317479,0.00010789,2]
[335541404,1724317852731,-241.83780477,0.00010789,2]
[335541405,1724317852740,-507.64009727,0.00010789,2]
[335541406,1724317852750,-513.67439872,0.00010789,2]
[335541407,1724317852759,-500.0,0.00010789,2]
[335541408,1724317852768,-586.35007205,0.00010789,2]
[335541409,1724317852778,-516.43404352,0.00010789,2]
[335541410,1724317852787,-542.18536007,0.00010789,2]
[335541411,1724317852797,-510.46078539,0.00010789,2]
[335541412,1724317852806,-614.82,0.00010789,2]
[335541413,1724317852815,-527.24045231,0.00010789,2]
[335541414,1724317852825,-614.82,0.00010789,2]
[335541415,1724317852834,-614.82,0.00010789,2]
[335541416,1724317852843,-614.82,0.00010789,2]
[335541417,1724317852852,-614.82,0.00010789,2]
[335541418,1724317852862,-614.82,0.00010789,2]
[335541419,1724317852871,-504.80463391,0.00010789,2]
[335541420,1724317852881,-614.82,0.00010789,2]
[335541421,1724317852891,-524.15781771,0.00010789,2]
[335541422,1724317852900,-552.9152867,0.00010789,2]
[335541423,1724317852909,-512.558006,0.00010789,2]
[335541424,1724317852921,-500.0,0.00010789,2]
[335541425,1724317852931,-500.0,0.00010789,2]
[335541426,1724317852940,-500.0,0.00010789,2]
[335541427,1724317852949,-216.34300254,0.00010789,2]
[335541428,1724317852958,-560.39676754,0.00010789,2]
[335541429,1724317852967,-513.65235056,0.00010789,2]
[335541430,1724317852976,-500.0,0.00010789,2]
[335541431,1724317852986,-500.0,0.00010789,2]
[335541432,1724317852995,-614.54962706,0.00010789,2]
[335541433,1724317853004,-500.0,0.00010789,2]
[335541434,1724317853014,-500.0,0.00010789,2]
[335541435,1724317853023,-227.17112014,0.00010789,2]
[335541436,1724317853033,-500.0,0.00010789,2]
[335541437,1724317853042,-500.0,0.00010789,2]
[335541438,1724317853052,-500.0,0.00010789,2]
[335541439,1724317853062,-500.0,0.00010789,2]
[335541440,1724317853071,-500.0,0.00010789,2]
[335541441,1724317853080,-515.67326661,0.00010789,2]
[335541442,1724317853089,-525.32704852,0.00010789,2]
[335541443,1724317853099,-500.0,0.00010789,2]
[335541444,1724317853108,-500.0,0.00010789,2]
[335541445,1724317853118,-500.0,0.00010789,2]
[335541446,1724317853127,-500.0,0.00010789,2]
[335541447,1724317853136,-500.0,0.00010789,2]
[335541448,1724317853146,-500.0,0.00010789,2]
[335541449,1724317853154,-500.0,0.00010789,2]
[335541450,1724317853164,-510.90774139,0.00010789,2]
[335541451,1724317853174,-507.16213252,0.00010789,2]
[335541452,1724317853183,-533.2398767,0.00010789,2]
[335541453,1724317853192,-511.06903273,0.00010789,2]
[335541454,1724317853202,-522.14162813,0.00010789,2]
[335541455,1724317853211,-500.0,0.00010789,2]
[335541456,1724317853221,-500.0,0.00010789,2]
[335541457,1724317853230,-528.85328062,0.00010789,2]
[335541458,1724317853239,-509.76418187,0.00010789,2]
[335541459,1724317853248,-831.05,0.00010789,2]
[335541460,1724317853257,-831.05,0.00010789,2]
[335541461,1724317853266,-831.05,0.00010789,2]
[335541462,1724317853277,-518.58456665,0.00010789,2]
[335541463,1724317853287,-500.0,0.00010789,2]
[335541464,1724317853296,-500.0,0.00010789,2]
[335541465,1724317853305,-831.05,0.00010789,2]
[335541466,1724317853314,-500.0,0.00010789,2]
[335541467,1724317853325,-831.05,0.00010789,2]
[335541468,1724317853334,-500.0,0.00010789,2]
[335541469,1724317853343,-831.05,0.00010789,2]
[335541470,1724317853353,-831.05,0.00010789,2]
[335541471,1724317853362,-500.0,0.00010789,2]
[335541472,1724317853373,-500.0,0.00010789,2]
[335541473,1724317853382,-502.83954802,0.00010789,2]
[335541474,1724317853391,-500.0,0.00010789,2]
[335541475,1724317853400,-544.48365208,0.00010789,2]
[335541476,1724317853408,-503.84316038,0.00010789,2]
[335541477,1724317853418,-518.87521995,0.00010789,2]
[335541478,1724317853429,-523.45772148,0.00010789,2]
[335541479,1724317853438,-517.00209586,0.00010789,2]
[335541480,1724317853447,-512.15754815,0.00010789,2]
[335541481,1724317853456,-500.0,0.00010789,2]
[335541482,1724317853465,-534.32388242,0.00010789,2]
[335541483,1724317853475,-504.35469619,0.00010789,2]
[335541484,1724317853484,-543.33050675,0.00010789,2]
[335541485,1724317853493,-500.0,0.00010789,2]
[335541486,1724317853502,-492.05154557,0.00010789,2]
[335541487,1724317853511,-500.0,0.00010789,2]
[335541488,1724317853520,-523.66799325,0.00010789,2]
[335541489,1724317853529,-500.0,0.00010789,2]
[335541490,1724317853538,-528.24304387,0.00010789,2]
[335541491,1724317853547,-557.95618105,0.00010789,2]
[335541492,1724317853557,-536.01134093,0.00010789,2]
[335541493,1724317853567,-500.0,0.00010789,2]
[335541494,1724317853577,-782.79,0.00010789,2]
[335541495,1724317853586,-782.79,0.00010789,2]
[335541496,1724317853595,-782.79,0.00010789,2]
[335541497,1724317853604,-782.79,0.00010789,2]
[335541498,1724317853615,-782.79,0.00010789,2]
[335541499,1724317853624,-782.79,0.00010789,2]
[335541500,1724317853633,-782.79,0.00010789,2]
[335541501,1724317853642,-500.0,0.00010789,2]
[335541502,1724317853651,-500.0,0.00010789,2]
[335541503,1724317853661,-500.0,0.00010789,2]
[335541504,1724317853672,-229.22,0.00010789,2]
[335541505,1724317853681,-520.58108675,0.00010789,2]
[335541506,1724317853690,-551.59382661,0.00010789,2]
[335541507,1724317853699,-499.96617277,0.00010789,2]
[335541508,1724317853708,-500.0,0.00010789,2]
[335541509,1724317853718,-606.63192805,0.00010789,2]
[335541510,1724317853727,-508.45548784,0.00010789,2]
[335541511,1724317853737,-500.0,0.00010789,2]
[335541512,1724317853747,-500.0,0.00010789,2]
[335541513,1724317853757,-500.0,0.00010789,2]
[335541514,1724317853766,-500.0,0.00010789,2]
[335541515,1724317853775,-500.0,0.00010789,2]
[335541516,1724317853784,-500.0,0.00010789,2]
[335541517,1724317853793,-500.0,0.00010789,2]
[335541518,1724317853802,-500.0,0.00010789,2]
[335541519,1724317853812,-507.23277823,0.00010789,2]
[335541520,1724317853821,-625.66400306,0.00010789,2]
[335541521,1724317853830,-618.57520846,0.00010789,2]
[335541522,1724317853840,-500.0,0.00010789,2]
[335541523,1724317853849,-541.5507605,0.00010789,2]
[335541524,1724317853858,-500.0,0.00010789,2]
[335541525,1724317853868,-500.0,0.00010789,2]
[335541526,1724317853878,-522.01358302,0.00010789,2]
[335541527,1724317853888,-500.0,0.00010789,2]
[335541528,1724317853897,-500.0,0.00010789,2]
[335541529,1724317853907,-500.0,0.00010789,2]
[335541530,1724317853916,-296.15,0.00010789,2]
[335541531,1724317853926,-500.0,0.00010789,2]
[335541532,1724317853935,-500.0,0.00010789,2]
[335541533,1724317853944,-502.5752523,0.00010789,2]
[335541534,1724317853953,-500.0,0.00010789,2]
[335541535,1724317853962,-500.0,0.00010789,2]
[335541536,1724317853971,-500.0,0.00010789,2]
[335541537,1724317853981,-500.0,0.00010789,2]
[335541538,1724317853991,-500.0,0.00010789,2]
[335541539,1724317854000,-500.0,0.00010789,2]
[335541540,1724317854009,-512.14493199,0.00010789,2]
[335541541,1724317854018,-500.0,0.00010789,2]
[335541542,1724317854027,-326.6296939,0.00010789,2]
[335541543,1724317854036,-500.0,0.00010789,2]
[335541544,1724317854045,-500.0,0.00010789,2]
[335541545,1724317854054,-500.0,0.00010789,2]
[335541546,1724317854174,-500.0,0.00010789,2]
[335541547,1724317854184,-500.0,0.00010789,2]
[335541548,1724317854194,-513.74495634,0.00010789,2]
[335541549,1724317854203,-500.0,0.00010789,2]
[335541550,1724317854212,-500.0,0.00010789,2]
[335541551,1724317854221,-500.0,0.00010789,2]
[335541552,1724317854230,-500.0,0.00010789,2]
[335541553,1724317854239,-500.0,0.00010789,2]
[335541554,1724317854249,-589.83556377,0.00010789,2]
[335541555,1724317854258,-519.22179798,0.00010789,2]
[335541556,1724317854267,-500.0,0.00010789,2]
[335541557,1724317854279,-500.0,0.00010789,2]
[335541558,1724317854289,-500.0,0.00010789,2]
[335541559,1724317854298,-397.66,0.00010789,2]
[335541560,1724317854307,-504.02419746,0.00010789,2]
[335541561,1724317854318,-500.0,0.00010789,2]
[335541562,1724317854328,-500.0,0.00010789,2]
[335541563,1724317854337,-500.0,0.00010789,2]
[335541564,1724317854346,-500.0,0.00010789,2]
[335541565,1724317854355,-500.0,0.00010789,2]
[335541566,1724317854365,-260.32867999,0.00010789,2]
[335541567,1724317854374,-500.0,0.00010789,2]
[335541568,1724317854383,-500.0,0.00010789,2]
[335541569,1724317854392,-500.0,0.00010789,2]
[335541570,1724317854401,-500.0,0.00010789,2]
[335541571,1724317854410,-500.0,0.00010789,2]
[335541572,1724317854420,-500.0,0.00010789,2]
[335541573,1724317854429,-500.0,0.00010789,2]
[335541574,1724317854438,-500.0,0.00010789,2]
[335541575,1724317854447,-498.94837329,0.00010789,2]
[335541576,1724317854456,-344.09690586,0.00010789,2]
[335541577,1724317854465,-4475.82,0.00010789,2]
[335541578,1724317854475,-500.0,0.00010789,2]
[335541579,1724317854484,-4475.82,0.00010789,2]
[335541580,1724317854493,-500.0,0.00010789,2]
[335541581,1724317854502,-4475.82,0.00010789,2]
[335541582,1724317854511,-4475.82,0.00010789,2]
[335541583,1724317854520,-4475.82,0.00010789,2]
[335541584,1724317854530,-4475.82,0.00010789,2]
[335541585,1724317854540,-4475.82,0.00010789,2]
[335541586,1724317854549,-500.0,0.00010789,2]
[335541587,1724317854560,-500.0,0.00010789,2]
[335541588,1724317854569,-500.0,0.00010789,2]
[335541589,1724317854579,-500.0,0.00010789,2]
[335541590,1724317854588,-500.0,0.00010789,2]
[335541591,1724317854597,-507.13181588,0.00010789,2]
[335541592,1724317854606,-507.87961207,0.00010789,2]
[335541593,1724317854615,-516.35132082,0.00010789,2]
[335541594,1724317854626,-520.17152694,0.00010789,2]
[335541595,1724317854635,-509.10863965,0.00010789,2]
[335541596,1724317854645,-526.66854665,0.00010789,2]
[335541597,1724317854655,-189.79937322,0.00010789,2]
[335541598,1724317854664,-507.26137553,0.00010789,2]
[335541599,1724317854674,-500.0,0.00010789,2]
[335541600,1724317854682,-500.0,0.00010789,2]
[335541601,1724317854692,-524.8214517,0.00010789,2]
[335541602,1724317854701,-500.0,0.00010789,2]
[335541603,1724317854710,-500.0,0.00010789,2]
[335541604,1724317854720,-7396.9,0.00010789,2]
[335541605,1724317854729,-500.0,0.00010789,2]
[335541606,1724317854738,-7396.9,0.00010789,2]
[335541607,1724317854747,-502.28647217,0.00010789,2]
[335541608,1724317854757,-7396.9,0.00010789,2]
[335541609,1724317854767,-7396.9,0.00010789,2]
[335541610,1724317854776,-7396.9,0.00010789,2]
[335541611,1724317854786,-7396.9,0.00010789,2]
[335541612,1724317854796,-500.0,0.00010789,2]
[335541613,1724317854805,-509.92010493,0.00010789,2]
[335541614,1724317854814,-7396.9,0.00010789,2]
[335541615,1724317854823,-500.0,0.00010789,2]
[335541616,1724317854833,-500.0,0.00010789,2]
[335541617,1724317854842,-500.0,0.00010789,2]
[335541618,1724317854852,-150.83900326,0.00010789,2]
[335541619,1724317854862,-500.0,0.00010789,2]
[335541620,1724317854871,-500.0,0.00010789,2]
[335541621,1724317854880,-500.0,0.00010789,2]
[335541622,1724317854890,-637.28,0.00010789,2]
[335541623,1724317854900,-500.0,0.00010789,2]
[335541624,1724317854909,-223.60401867,0.00010789,2]
[335541625,1724317854919,-500.0,0.00010789,2]
[335541626,1724317854928,-372.64759458,0.00010789,2]
[335541627,1724317854938,-500.0,0.00010789,2]
[335541628,1724317854948,-500.0,0.00010789,2]
[335541629,1724317854959,-500.0,0.00010789,2]
[335541630,1724317854970,-500.0,0.00010789,2]
[335541631,1724317854981,-231.04,0.00010789,2]
[335541632,1724317854990,-500.0,0.00010789,2]
[335541633,1724317855000,-500.0,0.00010789,2]
[335541634,1724317855010,-217.88872039,0.00010789,2]